bitfinex/quotes_BTCUSD_20220304
["timestamp","ask_amount","ask_price","bid_price","bid_amount"]
[1646361590167,0.39841475,41571.0,41570.0,0.19234752]
[1646361590969,0.17113818,41567.0,41562.0,0.1131]
[1646361591171,0.17113818,41567.0,41556.0,0.51143396]
[1646361591619,0.0482,41566.0,41556.0,0.51143396]
[1646361591814,0.0482,41566.0,41557.0,0.17788192]
[1646361592019,0.0482,41566.0,41556.0,0.01201]
[1646361592020,0.15887501,41559.0,41556.0,0.01201]
[1646361592221,0.39841475,41562.0,41556.0,0.01201]
[1646361592617,0.39841475,41563.0,41556.0,0.01201]
[1646361592816,0.01928,41560.0,41556.0,0.01201]
[1646361593018,0.0482,41562.0,41556.0,0.01201]
[1646361593222,0.19734004,41560.0,41556.0,0.01201]
[1646361593420,0.0482,41559.0,41556.0,0.01201]
[1646361594018,0.0482,41559.0,41549.0,0.06022643]
[1646361594218,0.0482,41559.0,41555.0,0.19244359]
[1646361594620,0.06137212,41559.0,41555.0,0.19244359]
[1646361594817,0.01483333,41557.0,41555.0,0.19244359]
[1646361595058,0.01248067,41556.0,41555.0,0.19244359]
[1646361595264,0.21448985,41556.0,41555.0,0.19244359]
[1646361595560,0.0482,41557.0,41555.0,0.19244359]
[1646361596762,0.057841,41557.0,41555.0,0.19244359]
[1646361596965,0.0482,41557.0,41547.0,0.4801]
[1646361597162,0.0482,41557.0,41546.0,0.6054]
[1646361597365,1.037,41556.0,41545.0,0.12045309]
[1646361597567,1.037,41556.0,41540.0,0.06023949]
[1646361597568,0.18304306,41550.0,41540.0,0.06023949]
[1646361597764,0.0482,41551.0,41540.0,0.06023949]
[1646361597963,0.3,41550.0,41540.0,0.06023949]
[1646361598172,0.3486797,41546.0,41530.0,0.686]
[1646361598473,0.3,41550.0,41532.0,0.2]
[1646361598474,0.6968797,41545.0,41532.0,0.2]
[1646361598668,0.0482,41544.0,41539.0,0.2624308]
[1646361599112,0.0482,41544.0,41539.0,0.2574308]
[1646361599313,0.0482,41544.0,41539.0,0.46581612]
[1646361599515,0.0482,41544.0,41539.0,0.20838532]
[1646361600415,0.0482,41544.0,41534.0,0.06024781]
[1646361600615,0.0482,41544.0,41536.0,0.24448502]
[1646361600813,0.057844,41544.0,41536.0,0.24448502]
[1646361601017,0.0512,41544.0,41536.0,0.24448502]
[1646361601216,0.0462,41544.0,41536.0,0.24448502]
[1646361601515,0.16717874,41543.0,41536.0,0.24448502]
[1646361601914,0.29875806,41543.0,41536.0,0.24448502]
[1646361602562,0.29875806,41543.0,41535.0,0.16426094]
[1646361602964,0.48084928,41542.0,41531.0,0.1235]
[1646361603363,0.0482,41541.0,41531.0,0.1235]
[1646361603569,0.0482,41541.0,41532.0,0.28263278]
[1646361603963,0.0482,41541.0,41534.0,0.2084478]
[1646361604567,0.057845,41541.0,41534.0,0.2084478]
[1646361604867,0.0482,41541.0,41534.0,0.2084478]
[1646361605564,0.0482,41541.0,41534.0,0.2034478]
[1646361605565,0.01055034,41540.0,41534.0,0.2034478]
[1646361605764,0.01413786,41539.0,41534.0,0.2034478]
[1646361605964,0.01480933,41537.0,41535.0,0.366532]
[1646361606170,0.01199351,41536.0,41535.0,0.366532]
[1646361606418,0.2081123,41540.0,41535.0,0.36275082]
[1646361606619,0.0482,41541.0,41534.0,0.2034478]
[1646361607117,0.0502,41541.0,41534.0,0.2034478]
[1646361608120,0.0482,41541.0,41534.0,0.2034478]
[1646361608727,0.0482,41541.0,41536.0,0.366787]
[1646361608923,0.0482,41541.0,41534.0,0.2034478]
[1646361609122,0.0482,41541.0,41536.0,0.366787]
[1646361609323,0.24882067,41544.0,41536.0,0.366787]
[1646361609524,0.24882067,41545.0,41536.0,0.366787]
[1646361609722,0.24882067,41545.0,41543.0,0.20468058]
[1646361610378,0.24882067,41546.0,41543.0,0.20468058]
[1646361610680,0.24882067,41545.0,41543.0,0.20468058]
[1646361610977,0.25482067,41545.0,41543.0,0.20468058]
[1646361611177,0.006,41545.0,41543.0,0.20468058]
[1646361612177,0.24882067,41544.0,41543.0,0.09394822]
[1646361612977,0.25482067,41544.0,41543.0,0.09394822]
[1646361613178,0.006,41544.0,41537.0,0.366787]
[1646361613378,0.006,41544.0,41536.0,0.1183]
[1646361613379,0.24879212,41543.0,41535.0,0.54246252]
[1646361613682,0.006,41544.0,41539.0,0.366787]
[1646361613683,0.25479212,41544.0,41539.0,0.366787]
[1646361614214,0.24879212,41544.0,41539.0,0.366787]
[1646361614416,0.24879212,41544.0,41536.0,0.19498914]
[1646361614618,0.24879212,41543.0,41536.0,0.19498914]
[1646361615215,0.24879212,41543.0,41537.0,0.366787]
[1646361616420,0.24879212,41544.0,41537.0,0.366787]
[1646361617662,0.24879212,41544.0,41538.0,0.06023856]
[1646361617863,0.24879212,41544.0,41539.0,0.366787]
[1646361618064,0.24879212,41545.0,41539.0,0.366787]
[1646361618467,0.24879212,41545.0,41541.0,0.23626301]
[1646361618968,0.25079212,41545.0,41541.0,0.23626301]
[1646361619168,0.25079212,41545.0,41542.0,0.366787]
[1646361619169,0.002,41545.0,41542.0,0.366787]
[1646361619368,0.009643,41547.0,41544.0,0.366787]
[1646361619567,0.009643,41547.0,41544.0,0.48723081]
[1646361620165,0.24879212,41553.0,41545.0,0.16700768]
[1646361620368,0.24879212,41553.0,41552.0,0.20752985]
[1646361620566,0.24879212,41553.0,41552.0,0.57431685]
[1646361620967,0.29875806,41556.0,41552.0,0.79530518]
[1646361620968,0.24879212,41554.0,41552.0,0.79530518]
[1646361621166,0.29875806,41556.0,41553.0,0.366787]
[1646361622014,0.24870157,41554.0,41553.0,0.366787]
[1646361622314,0.29875806,41556.0,41553.0,0.366652]
[1646361622513,0.29875806,41556.0,41553.0,0.09898556]
[1646361622716,0.29875806,41556.0,41553.0,0.39898556]
[1646361622918,0.01287621,41563.0,41553.0,0.22040991]
[1646361622919,0.29875806,41557.0,41553.0,0.22040991]
[1646361624119,0.29875806,41557.0,41553.0,0.21940991]
[1646361624915,0.29875806,41556.0,41553.0,0.21940991]
[1646361625966,0.29975806,41557.0,41553.0,0.21940991]
[1646361626365,0.29875806,41557.0,41553.0,0.21940991]
[1646361626965,0.29875806,41556.0,41553.0,0.09898556]
[1646361627766,0.29875806,41556.0,41551.0,0.06022264]
[1646361627767,0.59875806,41555.0,41551.0,0.06022264]
[1646361627969,0.59875806,41555.0,41548.0,0.1201]
[1646361627970,0.29851412,41553.0,41548.0,0.1201]
[1646361628167,0.29852984,41551.0,41547.0,0.01203]
[1646361628813,0.29852984,41551.0,41547.0,0.19249085]
[1646361629014,0.29852984,41551.0,41547.0,0.19349085]
[1646361629420,0.29852984,41550.0,41548.0,0.366648]
[1646361630728,0.29852984,41552.0,41548.0,0.42686979]
[1646361630919,0.29852984,41554.0,41548.0,0.42886979]
[1646361631319,0.29852984,41554.0,41548.0,0.44030401]
[1646361631721,0.29852984,41554.0,41548.0,0.43808919]
[1646361632121,0.2488111,41551.0,41548.0,0.43808919]
[1646361632419,0.2488111,41551.0,41548.0,0.43608919]
[1646361632667,0.29852984,41553.0,41552.0,0.24498462]
[1646361632869,0.29852984,41553.0,41552.0,0.24501431]
[1646361633574,0.3486797,41554.0,41553.0,0.366648]
[1646361633769,0.3486797,41554.0,41549.0,0.366656]
[1646361633971,0.2986556,41552.0,41551.0,0.28457337]
[1646361634168,0.2986556,41552.0,41551.0,0.366656]
[1646361634869,0.29861122,41552.0,41548.0,0.06022179]
[1646361635069,0.29861122,41551.0,41549.0,0.366656]
[1646361635470,0.29861122,41550.0,41549.0,0.366656]
[1646361637014,0.29861122,41550.0,41549.0,0.368656]
[1646361638316,0.29861122,41550.0,41549.0,0.366656]
[1646361639015,0.29861122,41550.0,41549.0,0.368656]
[1646361639215,0.45954505,41559.0,41549.0,0.368656]
[1646361639216,0.3486797,41552.0,41549.0,0.368656]
[1646361639417,0.3486797,41551.0,41549.0,0.368656]
[1646361640268,0.3486797,41551.0,41549.0,0.366656]
[1646361641069,0.3486797,41550.0,41549.0,0.366656]
[1646361642569,0.3486797,41550.0,41549.0,0.07448429]
[1646361643068,0.3486797,41550.0,41549.0,0.07648429]
[1646361644417,0.3486797,41550.0,41549.0,0.07448429]
[1646361645118,0.3486797,41550.0,41549.0,0.07648429]
[1646361645918,0.3486797,41551.0,41549.0,0.07648429]
[1646361646421,0.3486797,41551.0,41549.0,0.07448429]
[1646361646818,0.3476797,41551.0,41549.0,0.07448429]
[1646361647119,0.36418569,41557.0,41548.0,0.06022179]
[1646361647422,0.14826077,41556.0,41548.0,0.06022179]
[1646361647868,0.14826077,41555.0,41548.0,0.06022179]
[1646361648067,0.14826077,41554.0,41548.0,0.06022179]
[1646361648267,0.14826077,41553.0,41548.0,0.06022179]
[1646361648469,0.14826077,41552.0,41547.0,0.18046085]
[1646361648670,0.14826077,41551.0,41548.0,0.337151]
[1646361648868,0.14826077,41550.0,41548.0,0.337151]
[1646361649069,0.14826077,41555.0,41548.0,0.337151]
[1646361649269,0.01277055,41556.0,41547.0,0.18046085]
[1646361649270,0.14815365,41554.0,41547.0,0.18046085]
[1646361649469,0.14815365,41553.0,41548.0,0.61255757]
[1646361649669,0.14815365,41552.0,41548.0,0.27539057]
[1646361649870,0.14815365,41555.0,41549.0,0.06022147]
[1646361650074,0.14815365,41554.0,41547.0,0.18046085]
[1646361650273,0.14815365,41553.0,41547.0,0.18046085]
[1646361650469,0.77609738,41557.0,41547.0,0.18046085]
[1646361650470,0.14815365,41552.0,41547.0,0.18046085]
[1646361650673,0.14815365,41551.0,41547.0,0.18046085]
[1646361650872,0.14815365,41550.0,41547.0,0.18046085]
[1646361651073,0.77609738,41557.0,41548.0,0.60048757]
[1646361651320,0.14815894,41556.0,41548.0,0.23382557]
[1646361651921,0.3,41555.0,41547.0,0.18046085]
[1646361652126,0.19380139,41546.0,41542.0,0.12245313]
[1646361652322,0.29841371,41543.0,41542.0,0.002]
[1646361652523,0.29841371,41543.0,41542.0,0.42889403]
[1646361652922,0.29841371,41543.0,41542.0,0.366662]
[1646361653123,0.29841371,41544.0,41542.0,0.56082707]
[1646361654020,0.29841371,41543.0,41542.0,0.56082707]
[1646361654420,0.29841371,41544.0,41542.0,0.61905914]
[1646361654621,0.29841371,41544.0,41542.0,0.55882707]
[1646361654822,0.29841371,41543.0,41542.0,0.55882707]
[1646361656868,0.29841371,41543.0,41542.0,0.6190589]
[1646361657069,0.29841371,41543.0,41542.0,0.63028819]
[1646361657268,0.29841371,41544.0,41542.0,0.63028819]
[1646361657470,0.34809868,41546.0,41544.0,0.337265]
[1646361659115,0.34909868,41546.0,41544.0,0.337265]
[1646361659316,0.34809868,41545.0,41544.0,0.337265]
[1646361661017,0.34909868,41545.0,41544.0,0.337265]
[1646361661620,0.001,41545.0,41544.0,0.337265]
[1646361662018,0.001,41545.0,41542.0,0.15272622]
[1646361662218,0.001,41545.0,41543.0,0.366646]
[1646361662417,0.34809868,41547.0,41543.0,0.366646]
[1646361662670,0.34809868,41547.0,41543.0,0.11791496]
[1646361663173,0.34809868,41547.0,41543.0,0.11991496]
[1646361663872,0.34809868,41546.0,41543.0,0.11991496]
[1646361664470,0.34809868,41546.0,41543.0,0.11791496]
[1646361665071,0.34909868,41546.0,41543.0,0.11791496]
[1646361666428,0.29847947,41544.0,41543.0,0.11791496]
[1646361666633,0.34809868,41546.0,41543.0,0.11791496]
[1646361666829,0.29848678,41544.0,41543.0,0.11791496]
[1646361667030,0.34809868,41546.0,41543.0,0.11991496]
[1646361667428,0.29853467,41544.0,41543.0,0.11991496]
[1646361668232,0.34809868,41546.0,41543.0,0.11991496]
[1646361668436,0.34809868,41546.0,41543.0,0.11791496]
[1646361670469,0.34809868,41546.0,41543.0,0.21791496]
[1646361670470,0.29868546,41544.0,41543.0,0.21791496]
[1646361670673,0.28547305,41547.0,41545.0,0.117907]
[1646361671470,0.15954505,41555.0,41545.0,0.217907]
[1646361671471,0.1516848,41549.0,41545.0,0.217907]
[1646361671672,0.15954505,41555.0,41545.0,0.217907]
[1646361671868,0.24892228,41546.0,41545.0,0.217907]
[1646361672068,0.13982893,41556.0,41546.0,1.3]
[1646361672270,0.16748293,41555.0,41548.0,0.06021065]
[1646361672469,0.16748293,41554.0,41550.0,0.24210606]
[1646361672671,0.16748293,41553.0,41551.0,0.11788]
[1646361672869,0.39841475,41559.0,41551.0,0.11788]
[1646361672870,0.5579598,41559.0,41551.0,0.11788]
[1646361673069,0.16754819,41558.0,41551.0,0.11788]
[1646361673273,0.16654819,41558.0,41551.0,0.11788]
[1646361673471,0.39841475,41560.0,41551.0,0.11788]
[1646361673678,0.39841475,41560.0,41558.0,0.21604337]
[1646361673915,0.39841475,41560.0,41558.0,0.18905711]
[1646361674118,0.40805375,41561.0,41558.0,0.18905711]
[1646361674315,0.009639,41561.0,41558.0,0.18905711]
[1646361675314,0.009639,41561.0,41558.0,0.18893805]
[1646361675514,0.39841475,41562.0,41558.0,0.18893805]
[1646361676720,0.39841475,41564.0,41558.0,0.18893805]
[1646361677017,0.1896,41566.0,41558.0,0.18893805]
[1646361677018,0.39841475,41565.0,41558.0,0.18893805]
[1646361677216,0.58801475,41566.0,41558.0,0.19193805]
[1646361677416,0.58801475,41566.0,41560.0,0.24965418]
[1646361677669,0.39841475,41567.0,41560.0,0.24965418]
[1646361678067,0.40805275,41567.0,41560.0,0.24965418]
[1646361678269,0.39841475,41567.0,41560.0,0.24965418]
[1646361679069,0.39841475,41567.0,41560.0,0.25165418]
[1646361679472,0.39841475,41568.0,41560.0,0.25165418]
[1646361679674,0.39841475,41568.0,41561.0,0.737]
[1646361679876,0.34855234,41565.0,41563.0,0.737]
[1646361680074,0.39841475,41573.0,41564.0,1.3482]
[1646361680376,0.34840496,41568.0,41564.0,1.3482]
[1646361680877,0.0011,41581.0,41565.0,0.837]
[1646361680878,0.34840496,41570.0,41565.0,0.837]
[1646361681079,0.34840496,41571.0,41566.0,0.2075902]
[1646361681322,0.34840496,41571.0,41569.0,0.76105]
[1646361681624,0.39841475,41579.0,41569.0,0.76105]
[1646361681625,0.34840496,41572.0,41569.0,0.76105]
[1646361681821,0.34840496,41572.0,41571.0,0.99706916]
[1646361682018,0.34840496,41572.0,41571.0,0.26006916]
[1646361683219,0.34840496,41574.0,41571.0,0.26006916]
[1646361683621,0.34840496,41574.0,41573.0,0.20993578]
[1646361683920,0.34840496,41575.0,41573.0,0.18301225]
[1646361684228,0.34840496,41575.0,41571.0,0.26006916]
[1646361684521,0.46064505,41581.0,41569.0,0.1]
[1646361684522,0.19703844,41572.0,41569.0,0.1]
[1646361684720,0.19703844,41572.0,41566.0,0.0482]
[1646361685364,0.5454434,41572.0,41566.0,0.0482]
[1646361685865,0.5454434,41572.0,41564.0,0.01601]
[1646361685866,0.34840496,41571.0,41564.0,0.01601]
[1646361686463,0.34840496,41571.0,41564.0,0.01201]
[1646361686665,0.34840496,41570.0,41564.0,0.01201]
[1646361687465,0.34840496,41571.0,41564.0,0.01201]
[1646361687866,0.34840496,41570.0,41564.0,0.01201]
[1646361688064,0.34840496,41571.0,41564.0,0.01201]
[1646361688266,0.34840496,41571.0,41564.0,0.01136454]
[1646361690324,0.34840496,41571.0,41559.0,0.003]
[1646361690521,0.3,41570.0,41555.0,0.1]
[1646361690722,0.64840496,41570.0,41554.0,0.2948]
[1646361690920,0.64840496,41570.0,41554.0,0.1948]
[1646361691121,0.3,41570.0,41554.0,0.2948]
[1646361691323,0.34840496,41570.0,41554.0,0.2948]
[1646361691521,0.34840496,41570.0,41557.0,0.20342087]
[1646361691921,0.64840496,41570.0,41557.0,0.20342087]
[1646361692125,0.17573777,41564.0,41557.0,0.20342087]
[1646361692767,0.3,41569.0,41557.0,0.20342087]
[1646361692967,0.34840496,41570.0,41557.0,0.20342087]
[1646361693167,0.01397099,41569.0,41557.0,0.20742087]
[1646361693768,0.01397099,41569.0,41557.0,0.004]
[1646361693968,0.01397099,41569.0,41559.0,0.26076038]
[1646361694972,0.21304685,41566.0,41559.0,0.26076038]
[1646361695172,0.01397099,41569.0,41559.0,0.26376038]
[1646361696171,0.2045165,41564.0,41559.0,0.26376038]
[1646361696417,0.01245211,41571.0,41559.0,0.26076038]
[1646361696616,0.01592481,41569.0,41559.0,0.26076038]
[1646361696817,0.34793573,41572.0,41559.0,0.26076038]
[1646361696818,0.01116471,41571.0,41559.0,0.26076038]
[1646361697017,0.01014375,41569.0,41559.0,0.26076038]
[1646361697217,0.01022442,41571.0,41559.0,0.26376038]
[1646361697422,0.15886764,41566.0,41559.0,0.26376038]
[1646361698018,0.009637,41570.0,41559.0,0.26376038]
[1646361698817,0.009637,41570.0,41559.0,0.26076038]
[1646361699018,0.16302621,41568.0,41559.0,0.26076038]
[1646361699318,0.01272893,41571.0,41559.0,0.26376038]
[1646361700186,0.34793573,41572.0,41565.0,0.19824463]
[1646361700384,0.34793573,41572.0,41559.0,0.26376038]
[1646361700589,0.34793573,41572.0,41559.0,0.26076038]
[1646361701086,0.34793573,41572.0,41566.0,0.2469406]
[1646361701489,0.16364678,41570.0,41561.0,0.15550966]
[1646361703186,0.16364678,41570.0,41561.0,0.15534016]
[1646361704327,0.51158251,41570.0,41561.0,0.003]
[1646361704526,0.64793573,41569.0,41561.0,0.003]
[1646361704727,0.01596002,41568.0,41561.0,0.003]
[1646361704926,0.23435331,41568.0,41561.0,0.003]
[1646361705130,0.00912204,41567.0,41561.0,0.003]
[1646361705328,0.01068479,41565.0,41561.0,0.006]
[1646361705527,0.01307335,41567.0,41557.0,0.22326888]
[1646361705729,0.01356405,41565.0,41557.0,0.22326888]
[1646361705929,0.36036498,41567.0,41557.0,0.22326888]
[1646361706129,0.35883971,41567.0,41557.0,0.22326888]
[1646361706328,0.35883971,41567.0,41555.0,0.1]
[1646361707330,0.34793573,41566.0,41555.0,0.1]
[1646361707566,0.34793573,41566.0,41557.0,0.28946836]
[1646361708568,0.01090398,41567.0,41557.0,0.28946836]
[1646361708569,0.34793573,41567.0,41557.0,0.28946836]
[1646361709467,0.34793573,41567.0,41557.0,0.29246836]
[1646361710168,0.34793573,41566.0,41557.0,0.29246836]
[1646361710569,0.34793573,41566.0,41557.0,0.28946836]
[1646361710767,0.32693573,41566.0,41557.0,0.28946836]
[1646361711169,0.32693573,41566.0,41557.0,0.29246836]
[1646361711424,0.01061633,41567.0,41557.0,0.29246836]
[1646361712524,0.01061633,41567.0,41557.0,0.28946836]
[1646361713324,0.01061633,41567.0,41557.0,0.29246836]
[1646361714123,0.16364678,41570.0,41557.0,0.29246836]
[1646361714124,0.01074831,41568.0,41557.0,0.29246836]
[1646361714324,0.02487987,41567.0,41557.0,0.29246836]
[1646361714524,0.02487987,41567.0,41557.0,0.28946836]
[1646361715369,0.02487987,41567.0,41557.0,0.29246836]
[1646361715971,0.01074831,41568.0,41557.0,0.29246836]
[1646361716173,0.02489169,41567.0,41557.0,0.29246836]
[1646361716572,0.02489169,41567.0,41564.0,0.25075377]
[1646361717373,0.39764084,41573.0,41564.0,0.25275377]
[1646361717374,0.009637,41568.0,41564.0,0.25275377]
[1646361717573,0.02489058,41567.0,41564.0,0.25275377]
[1646361717773,0.34845981,41566.0,41564.0,0.25275377]
[1646361718822,0.34845981,41566.0,41564.0,0.25075377]
[1646361719024,0.1922,41579.0,41564.0,0.25075377]
[1646361719025,0.34845981,41568.0,41564.0,0.25075377]
[1646361719224,0.34845981,41569.0,41564.0,0.25375377]
[1646361719521,0.34845981,41570.0,41564.0,0.25375377]
[1646361719922,0.34845981,41569.0,41564.0,0.25375377]
[1646361720525,0.34845981,41568.0,41564.0,0.25075377]
[1646361720727,0.34845981,41568.0,41556.0,0.2162]
[1646361721027,0.34845981,41567.0,41556.0,0.2162]
[1646361721225,0.34845981,41567.0,41556.0,0.1162]
[1646361721425,0.34845981,41566.0,41559.0,0.18464917]
[1646361721625,0.1586783,41565.0,41559.0,0.002]
[1646361721826,0.1586783,41565.0,41559.0,0.20648492]
[1646361722225,0.50713811,41565.0,41559.0,0.20648492]
[1646361722574,0.34845981,41565.0,41559.0,0.20448492]
[1646361723374,0.34845981,41565.0,41559.0,0.20748492]
[1646361724171,0.34845981,41565.0,41559.0,0.003]
[1646361724571,0.16843317,41566.0,41559.0,0.003]
[1646361724572,0.34845981,41563.0,41559.0,0.003]
[1646361724875,0.34845981,41560.0,41554.0,0.1948]
[1646361725073,0.34845981,41560.0,41550.0,0.1]
[1646361725074,0.29870606,41557.0,41551.0,0.1236]
[1646361725272,0.29870606,41556.0,41554.0,0.002]
[1646361725474,0.29870606,41557.0,41554.0,0.002]
[1646361726075,0.29870606,41558.0,41554.0,0.002]
[1646361726319,0.29870606,41558.0,41557.0,0.20739464]
[1646361727217,0.34845981,41561.0,41558.0,0.15933983]
[1646361727418,0.2986778,41559.0,41558.0,0.15933983]
[1646361728220,0.34845981,41561.0,41558.0,0.15933983]
[1646361729320,0.34845981,41561.0,41558.0,0.16133983]
[1646361729519,0.34845981,41560.0,41558.0,0.16133983]
[1646361730670,0.34845981,41560.0,41558.0,0.15933983]
[1646361731078,0.34845981,41561.0,41558.0,0.15933983]
[1646361731277,0.34845981,41560.0,41558.0,0.16133983]
[1646361732074,0.34845981,41560.0,41558.0,0.002]
[1646361732675,0.32745981,41560.0,41551.0,0.1158]
[1646361732875,0.29879115,41558.0,41551.0,0.1158]
[1646361733074,0.29580384,41558.0,41555.0,0.19350983]
[1646361733276,0.05483153,41560.0,41555.0,0.48118498]
[1646361733476,0.01001613,41564.0,41555.0,0.48118498]
[1646361733678,0.05483267,41563.0,41555.0,0.48118498]
[1646361734319,0.05483267,41563.0,41555.0,0.19350983]
[1646361734516,0.05483267,41563.0,41550.0,0.4]
[1646361734717,0.06987469,41563.0,41550.0,0.4]
[1646361734918,0.01586222,41561.0,41550.0,0.4]
[1646361735117,0.05483267,41560.0,41550.0,0.4]
[1646361735317,0.05483267,41560.0,41550.0,0.403]
[1646361735518,0.05483267,41560.0,41552.0,0.21081193]
[1646361735718,0.05483267,41560.0,41552.0,0.38374003]
[1646361737318,0.05483267,41560.0,41552.0,0.1759281]
[1646361738670,0.05483267,41560.0,41553.0,0.28347965]
[1646361738876,0.05483267,41560.0,41552.0,0.1729281]
[1646361739072,0.05483267,41562.0,41552.0,0.1729281]
[1646361739271,0.05483267,41561.0,41552.0,0.1729281]
[1646361739472,0.05483267,41560.0,41552.0,0.1729281]
[1646361739671,0.01175553,41563.0,41552.0,0.1729281]
[1646361739872,0.34848331,41559.0,41552.0,0.1729281]
[1646361740172,0.34848331,41559.0,41553.0,0.3]
[1646361740871,0.34848331,41559.0,41556.0,0.2883699]
[1646361741073,0.2987056,41557.0,41556.0,0.2883699]
[1646361741727,0.2987056,41557.0,41553.0,0.303]
[1646361742527,0.2987056,41557.0,41553.0,0.3]
[1646361742927,0.2987056,41557.0,41554.0,0.28240008]
[1646361743127,0.2987056,41557.0,41553.0,0.3]
[1646361743328,0.2987056,41557.0,41553.0,0.003]
[1646361744133,0.2987056,41556.0,41554.0,0.2663671]
[1646361744529,0.2987056,41557.0,41554.0,0.2663671]
[1646361745479,0.2987056,41557.0,41554.0,0.2693671]
[1646361745779,0.2987056,41556.0,41554.0,0.003]
[1646361745982,0.2987056,41555.0,41554.0,0.003]
[1646361746180,0.2987056,41556.0,41554.0,0.003]
[1646361746381,0.2987056,41555.0,41554.0,0.003]
[1646361746581,0.2987056,41556.0,41552.0,0.1729281]
[1646361746786,0.2987056,41556.0,41553.0,0.24309827]
[1646361746981,0.2987056,41555.0,41552.0,0.1729281]
[1646361747185,0.2987056,41553.0,41544.0,0.01203]
[1646361747383,0.29871113,41549.0,41547.0,0.003]
[1646361747782,0.18556244,41549.0,41547.0,0.003]
[1646361747981,0.48427357,41549.0,41547.0,0.003]
[1646361748180,0.01114592,41548.0,41547.0,0.003]
[1646361748582,0.01114592,41548.0,41539.0,0.2897106]
[1646361748583,0.30985705,41548.0,41539.0,0.2897106]
[1646361749222,0.30985705,41548.0,41542.0,0.25145293]
[1646361749425,0.48427357,41549.0,41542.0,0.25145293]
[1646361749620,0.18556244,41549.0,41542.0,0.25145293]
[1646361750223,0.48427357,41549.0,41542.0,0.25145293]
[1646361750420,0.48427357,41549.0,41539.0,0.2947106]
[1646361750624,0.01539763,41548.0,41539.0,0.2897106]
[1646361751323,0.49605815,41549.0,41539.0,0.2957106]
[1646361751524,0.01011016,41548.0,41539.0,0.2957106]
[1646361751732,0.01011016,41548.0,41541.0,0.22032799]
[1646361752125,0.01124583,41549.0,41541.0,0.22032799]
[1646361752898,0.19417968,41547.0,41541.0,0.22032799]
[1646361753499,0.01063971,41548.0,41541.0,0.22032799]
[1646361753701,0.01417345,41549.0,41541.0,0.22032799]
[1646361754301,0.01417345,41549.0,41539.0,0.2897106]
[1646361754504,0.21699293,41546.0,41539.0,0.2897106]
[1646361754700,0.01149382,41548.0,41539.0,0.1726106]
[1646361754899,0.01059563,41549.0,41539.0,0.1726106]
[1646361755499,0.01059563,41549.0,41539.0,0.46158384]
[1646361756001,0.61354421,41551.0,41539.0,0.46158384]
[1646361756201,0.01086934,41549.0,41539.0,0.46158384]
[1646361756419,0.01026369,41548.0,41539.0,0.46158384]
[1646361756626,0.02386749,41549.0,41539.0,0.46158384]
[1646361757525,0.01216336,41549.0,41539.0,0.46158384]
[1646361757726,0.01061421,41549.0,41539.0,0.46158384]
[1646361757925,0.01110049,41549.0,41539.0,0.46158384]
[1646361758125,0.61137169,41551.0,41539.0,0.46148427]
[1646361758326,0.01350385,41549.0,41539.0,0.46148427]
[1646361758526,0.20898024,41546.0,41539.0,0.46148427]
[1646361759326,0.59871113,41551.0,41546.0,0.15846964]
[1646361759530,0.01430459,41549.0,41546.0,0.14262268]
[1646361759726,0.01272214,41549.0,41546.0,0.14262268]
[1646361759926,0.59871113,41551.0,41546.0,0.14262268]
[1646361760168,0.01138727,41549.0,41546.0,0.14262268]
[1646361760368,0.0100742,41549.0,41539.0,0.29197324]
[1646361760574,0.0100742,41549.0,41539.0,0.28897324]
[1646361761371,0.0100742,41549.0,41543.0,0.16380754]
[1646361761573,0.0100742,41549.0,41539.0,0.003]
[1646361761774,0.31409589,41547.0,41539.0,0.003]
[1646361761975,0.01234018,41545.0,41539.0,0.003]
[1646361762573,0.01234018,41545.0,41538.0,0.46194519]
[1646361762773,0.01234018,41545.0,41538.0,0.17648567]
[1646361763373,0.01093598,41545.0,41538.0,0.17948567]
[1646361763827,0.01093598,41545.0,41543.0,0.21629115]
[1646361764028,0.01093598,41545.0,41538.0,0.17948567]
[1646361764429,0.309642,41546.0,41538.0,0.17948567]
[1646361764629,0.3,41546.0,41538.0,0.17648567]
[1646361765328,0.3,41546.0,41541.0,0.24062851]
[1646361765528,0.31462071,41547.0,41545.0,0.17856258]
[1646361765730,0.61052839,41549.0,41545.0,0.17856258]
[1646361766330,0.01275684,41548.0,41545.0,0.17856258]
[1646361766635,0.0482,41553.0,41545.0,0.17856258]
[1646361766636,0.29871113,41552.0,41545.0,0.17856258]
[1646361766830,0.34848331,41554.0,41545.0,0.17856258]
[1646361766831,0.29871113,41554.0,41545.0,0.17856258]
[1646361767331,0.31090366,41553.0,41545.0,0.18156258]
[1646361767582,0.16880474,41552.0,41545.0,0.18156258]
[1646361767775,0.29871113,41553.0,41545.0,0.18156258]
[1646361768375,0.31412957,41553.0,41545.0,0.18156258]
[1646361768576,0.31412957,41553.0,41545.0,0.17856258]
[1646361768776,0.5278227,41553.0,41545.0,0.17856258]
[1646361769376,0.31412957,41553.0,41545.0,0.18256258]
[1646361769577,0.01541844,41553.0,41545.0,0.18256258]
[1646361769878,0.01541844,41553.0,41552.0,0.16417514]
[1646361770278,0.29871113,41554.0,41552.0,0.16417514]
[1646361770481,0.34848331,41556.0,41552.0,0.16417514]
[1646361770482,0.29871113,41556.0,41552.0,0.16417514]
[1646361770688,0.16334473,41561.0,41552.0,0.16417514]
[1646361770689,0.29871113,41557.0,41552.0,0.16417514]
[1646361770878,0.54298331,41559.0,41552.0,0.16417514]
[1646361770879,0.29871113,41558.0,41552.0,0.16417514]
[1646361773028,0.29871113,41558.0,41554.0,0.27653713]
[1646361775573,0.34823073,41561.0,41554.0,0.27653713]
[1646361775574,0.29871113,41557.0,41554.0,0.27653713]
[1646361776169,0.29871113,41558.0,41554.0,0.27653713]
[1646361776570,0.29871113,41558.0,41552.0,0.16417514]
[1646361777169,0.29871113,41557.0,41552.0,0.16417514]
[1646361777368,0.29871113,41557.0,41552.0,0.16717514]
[1646361777569,0.29871113,41557.0,41552.0,0.44645967]
[1646361777772,0.29871113,41558.0,41552.0,0.44645967]
[1646361778571,0.29871113,41558.0,41552.0,0.44345967]
[1646361778830,0.29857272,41558.0,41552.0,0.44345967]
[1646361779633,0.29857272,41558.0,41552.0,0.39911371]
[1646361780634,0.29857272,41558.0,41553.0,0.1]
[1646361780833,0.34848331,41563.0,41553.0,0.1482]
[1646361781033,0.34848331,41564.0,41553.0,0.1482]
[1646361781233,0.36396694,41565.0,41560.0,0.21699523]
[1646361781435,0.34848331,41565.0,41560.0,0.21699523]
[1646361783381,0.34848331,41565.0,41560.0,0.21999523]
[1646361783581,0.34848331,41565.0,41560.0,0.003]
[1646361783784,0.52181202,41565.0,41560.0,0.003]